[Event "Marienbad IM-II 2022"]
[Site "Marianske Lazne"]
[Date "2022.01.15"]
[Round "1.16"]
[White "Pisk, Petr"]
[Black "Hari Charan Sai Kalluri"]
[Result "1-0"]
[ECO "D03"]
[WhiteElo "2328"]
[BlackElo "2160"]
[Annotator "ChessBase"]
[PlyCount "95"]
[EventDate "2022.01.15"]
[EventType "tourn"]
[EventCountry "CZE"]
[SourceTitle "playchess.com"]
[Source "ChessBase"]
[SourceQuality "1"]
[TimeControl "40/5400+30:1800+30"]

1. d4 {[%emt 0:00:04]} d5 {[%emt 0:00:13]} 2. Nf3 {[%emt 0:00:42]} Nf6 {[%emt 0:00:31]} 3. Bg5 {[%emt 0:01:01]} c5 {[%emt 0:02:47]} 4. e3 {[%emt 0:04:05]} Nc6 {[%emt 0:01:51]} 5. c3 {[%emt 0:02:39]} Ne4 {[%emt 0:05:49]} 6. Bf4 {[%emt 0:01:24]} h6 {[%emt 0:06:41]} 7. h3 {[%emt 0:02:43]} Qb6 {[%emt 0:05:10]} 8. Qb3 {[%emt 0:04:55]} c4 {[%emt 0:10:57]} 9. Qc2 {[%emt 0:11:32]} Bf5 {[%emt 0:02:30]} 10. Qc1 {[%emt 0:00:21]} e6 {[%emt 0:03:02]} 11. Be2 {[%emt 0:06:31]} Be7 {[%emt 0:04:36]} 12. Nbd2 {[%emt 0:01:39]} O-O {[%emt 0:02:26]} 13. O-O {[%emt 0:03:50]} Qa5 {[%emt 0:04:16]} 14. Nxe4 {[%emt 0:02:15]} Bxe4 {[%emt 0:00:57]} 15. Nd2 {[%emt 0:07:26]} Bh7 {[%emt 0:02:32]} 16. e4 {[%emt 0:02:19]} Rad8 {[%emt 0:15:33]} 17. Re1 {[%emt 0:04:32]} f5 {[%emt 0:10:06]} 18. exd5 {[%emt 0:05:51]} exd5 {[%emt 0:00:37]} 19. b4 {[%emt 0:13:38]} Qb6 {[%emt 0:07:43]} 20. a4 {[%emt 0:08:15]} Rd7 {[%emt 0:02:55]} 21. a5 {[%emt 0:07:59]} Qd8 {[%emt 0:01:50]} 22. Bd1 {[%emt 0:02:56]} g5 {[%emt 0:03:47]} 23. Bh2 {[%emt 0:00:07]} Bd6 {[%emt 0:00:38]} 24. Ba4 {[%emt 0:01:56]} Re7 {[%emt 0:02:37]} 25. Bxc6 {[%emt 0:02:33]} bxc6 {[%emt 0:00:02]} 26. Bxd6 {[%emt 0:00:16]} Qxd6 {[%emt 0:00:01]} 27. Rxe7 {[%emt 0:00:49]} Qxe7 {[%emt 0:00:01]} 28. Qe1 {[%emt 0:00:35]} Re8 {[%emt 0:02:07]} 29. Qxe7 {[%emt 0:00:03]} Rxe7 {[%emt 0:00:01]} 30. Kf1 {[%emt 0:00:55]} f4 {[%emt 0:00:23]} 31. Nf3 {[%emt 0:00:02]} Bd3+ {[%emt 0:01:28]} 32. Kg1 {[%emt 0:00:01]} Bg6 {[%emt 0:00:40]} 33. Ne5 {[%emt 0:00:48]} Be8 {[%emt 0:00:04]} 34. Kh2 {[%emt 0:01:28]} Kg7 {[%emt 0:01:37]} 35. g3 {[%emt 0:00:40]} fxg3+ {[%emt 0:00:14]} 36. Kxg3 {[%emt 0:00:15]} Re6 {[%emt 0:00:54]} 37. Re1 {[%emt 0:00:15]} Bg6 {[%emt 0:00:52]} 38. Re3 {[%emt 0:00:37]} Bf5 {[%emt 0:00:30]} 39. Re1 {[%emt 0:01:28]} Kf6 {[%emt 0:00:30]} 40. Re2 {[%emt 0:00:28]} h5 {[%emt 0:00:18]} 41. h4 {[%emt 0:30:20]} Bd3 {[%emt 0:30:43]} 42. Nd7+ {[%emt 0:00:00]} Ke7 {[%emt 0:00:00]} 43. Rxe6+ {[%emt 0:00:00]} Kxe6 {[%emt 0:00:00]} 44. Ne5 {[%emt 0:00:00]} gxh4+ {[%emt 0:00:00]} 45. Kxh4 {[%emt 0:00:00]} Be2 {[%emt 0:00:00]} 46. Nxc6 {[%emt 0:00:00]} a6 {[%emt 0:00:00]} 47. Nb8 {[%emt 0:00:00]} Kd6 {[%emt 0:00:00]} 48. Nxa6 {[%emt 0:00:00]} 1-0

[Event "Marienbad IM-II 2022"]
[Site "Marianske Lazne"]
[Date "2022.01.15"]
[Round "1.17"]
[White "Michalek, Jan"]
[Black "Richter, Nils"]
[Result "1/2-1/2"]
[ECO "B40"]
[WhiteElo "2240"]
[BlackElo "2270"]
[Annotator "ChessBase"]
[PlyCount "72"]
[EventDate "2022.01.15"]
[EventType "tourn"]
[EventCountry "CZE"]
[SourceTitle "playchess.com"]
[Source "ChessBase"]
[SourceQuality "1"]
[TimeControl "40/5400+30:1800+30"]

1. e4 {[%emt 0:00:04]} c5 {[%emt 0:00:06]} 2. Nf3 {[%emt 0:00:15]} e6 {[%emt 0:00:08]} 3. c3 {[%emt 0:01:02]} Nf6 {[%emt 0:00:14]} 4. e5 {[%emt 0:00:23]} Nd5 {[%emt 0:00:08]} 5. g3 {[%emt 0:01:20]} d6 {[%emt 0:01:37]} 6. Bg2 {[%emt 0:03:33]} Nc6 {[%emt 0:04:01]} 7. exd6 {[%emt 0:01:24]} Bxd6 {[%emt 0:00:32]} 8. O-O {[%emt 0:00:30]} O-O {[%emt 0:00:26]} 9. Re1 {[%emt 0:06:47]} Bd7 {[%emt 0:05:11]} 10. Na3 {[%emt 0:03:28]} a6 {[%emt 0:08:09]} 11. Nc4 {[%emt 0:05:12]} Bc7 {[%emt 0:00:40]} 12. a4 {[%emt 0:04:18]} b5 {[%emt 0:14:55]} 13. Nce5 {[%emt 0:05:38]} Nxe5 {[%emt 0:09:08]} 14. Nxe5 {[%emt 0:00:08]} Bxe5 {[%emt 0:00:15]} 15. Rxe5 {[%emt 0:00:05]} Bc6 {[%emt 0:00:22]} 16. d4 {[%emt 0:07:59]} c4 {[%emt 0:09:02]} 17. Qf1 {[%emt 0:07:24]} Qd7 {[%emt 0:01:00]} 18. Bd2 {[%emt 0:00:52]} Nb6 {[%emt 0:03:03]} 19. axb5 {[%emt 0:14:55]} axb5 {[%emt 0:00:17]} 20. Ree1 {[%emt 0:00:26]} Qb7 {[%emt 0:05:04]} 21. Bf4 {[%emt 0:02:12]} Rfd8 {[%emt 0:02:14]} 22. Rxa8 {[%emt 0:06:45]} Rxa8 {[%emt 0:00:25]} 23. Bxc6 {[%emt 0:05:30]} Qxc6 {[%emt 0:00:03]} 24. Ra1 {[%emt 0:00:18]} h6 {[%emt 0:01:38]} 25. h4 {[%emt 0:00:45]} Nd5 {[%emt 0:04:59]} 26. Rxa8+ {[%emt 0:01:45]} Qxa8 {[%emt 0:00:02]} 27. Bd6 {[%emt 0:00:11]} Nf6 {[%emt 0:02:36]} 28. Qe2 {[%emt 0:04:11]} Qd5 {[%emt 0:06:03]} 29. Ba3 {[%emt 0:02:05]} Ne4 {[%emt 0:01:49]} 30. Be7 {[%emt 0:01:28]} Qb7 {[%emt 0:01:38]} 31. Ba3 {[%emt 0:00:32]} Qa8 {[%emt 0:03:46]} 32. Qf3 {[%emt 0:00:38]} Qd5 {[%emt 0:00:33]} 33. Qf4 {[%emt 0:01:48]} Nf6 {[%emt 0:05:08]} 34. f3 {[%emt 0:00:23]} Nd7 {[%emt 0:00:52]} 35. Qc7 {[%emt 0:00:41]} e5 {[%emt 0:03:07]} 36. Bd6 {[%emt 0:04:26]} Qxf3 {[%emt 0:04:40]} 1/2-1/2

[Event "Marienbad IM-II 2022"]
[Site "Marianske Lazne"]
[Date "2022.01.15"]
[Round "1.18"]
[White "Bomans, Arno"]
[Black "Klek, Hanna Marie"]
[Result "1/2-1/2"]
[ECO "D38"]
[WhiteElo "2246"]
[BlackElo "2341"]
[Annotator "ChessBase"]
[PlyCount "31"]
[EventDate "2022.01.15"]
[EventType "tourn"]
[EventCountry "CZE"]
[SourceTitle "playchess.com"]
[Source "ChessBase"]
[SourceQuality "1"]
[TimeControl "40/5400+30:1800+30"]

1. d4 {[%emt 0:00:04]} d5 {[%emt 0:00:05]} 2. c4 {[%emt 0:00:12]} e6 {[%emt 0:00:02]} 3. Nc3 {[%emt 0:00:12]} Bb4 {[%emt 0:00:11]} 4. Nf3 {[%emt 0:09:17]} Nf6 {[%emt 0:00:09]} 5. Bg5 {[%emt 0:00:39]} h6 {[%emt 0:01:06]} 6. Bxf6 {[%emt 0:00:27]} Qxf6 {[%emt 0:00:08]} 7. Qa4+ {[%emt 0:00:21]} Nc6 {[%emt 0:00:08]} 8. e3 {[%emt 0:00:44]} O-O {[%emt 0:01:50]} 9. Rc1 {[%emt 0:04:41]} a6 {[%emt 0:03:58]} 10. a3 {[%emt 0:05:04]} Bxc3+ {[%emt 0:00:46]} 11. Rxc3 {[%emt 0:00:36]} dxc4 {[%emt 0:01:45]} 12. Qxc4 {[%emt 0:02:28]} e5 {[%emt 0:11:06]} 13. Nxe5 {[%emt 0:06:08]} Nxe5 {[%emt 0:00:08]} 14. dxe5 {[%emt 0:00:05]} Qxe5 {[%emt 0:00:10]} 15. Bd3 {[%emt 0:08:31]} c6 {[%emt 0:05:10]} 16. Qe4 {[%emt 0:01:38]} 1/2-1/2

[Event "Marienbad IM-II 2022"]
[Site "Marianske Lazne"]
[Date "2022.01.15"]
[Round "1.19"]
[White "Acor, Corey"]
[Black "Vojta, Jakub"]
[Result "1/2-1/2"]
[ECO "A56"]
[WhiteElo "2303"]
[BlackElo "2289"]
[Annotator "ChessBase"]
[PlyCount "61"]
[EventDate "2022.01.15"]
[EventType "tourn"]
[EventCountry "CZE"]
[SourceTitle "playchess.com"]
[Source "ChessBase"]
[SourceQuality "1"]
[TimeControl "40/5400+30:1800+30"]

1. d4 {[%emt 0:00:27]} Nf6 {[%emt 0:00:11]} 2. c4 {[%emt 0:00:09]} c5 {[%emt 0:00:04]} 3. Nf3 {[%emt 0:01:05]} g6 {[%emt 0:03:52]} 4. Nc3 {[%emt 0:00:48]} cxd4 {[%emt 0:02:02]} 5. Nxd4 {[%emt 0:00:25]} Bg7 {[%emt 0:00:06]} 6. e4 {[%emt 0:02:43]} d6 {[%emt 0:01:02]} 7. Be2 {[%emt 0:00:59]} O-O {[%emt 0:00:05]} 8. Be3 {[%emt 0:00:28]} Nc6 {[%emt 0:00:37]} 9. O-O {[%emt 0:00:43]} Bd7 {[%emt 0:00:17]} 10. Rc1 {[%emt 0:01:29]} Nxd4 {[%emt 0:02:37]} 11. Bxd4 {[%emt 0:00:22]} Bc6 {[%emt 0:00:19]} 12. b3 {[%emt 0:05:43]} e5 {[%emt 0:04:15]} 13. Be3 {[%emt 0:00:43]} Nxe4 {[%emt 0:00:37]} 14. Nxe4 {[%emt 0:07:46]} Bxe4 {[%emt 0:00:11]} 15. Bf3 {[%emt 0:02:02]} Bc6 {[%emt 0:10:31]} 16. Bd5 {[%emt 0:00:44]} Rc8 {[%emt 0:09:42]} 17. c5 {[%emt 0:07:17]} Bxd5 {[%emt 0:17:17]} 18. Qxd5 {[%emt 0:00:04]} dxc5 {[%emt 0:00:15]} 19. Qxb7 {[%emt 0:01:02]} Qa5 {[%emt 0:01:37]} 20. Rc2 {[%emt 0:00:24]} Rfd8 {[%emt 0:03:17]} 21. Rfc1 {[%emt 0:01:30]} f5 {[%emt 0:10:01]} 22. Bg5 {[%emt 0:04:14]} Re8 {[%emt 0:01:24]} 23. b4 {[%emt 0:00:45]} Qb6 {[%emt 0:08:11]} 24. Qd5+ {[%emt 0:01:32]} Qe6 {[%emt 0:00:56]} 25. Qxe6+ {[%emt 0:00:58]} Rxe6 {[%emt 0:00:05]} 26. Rxc5 {[%emt 0:00:33]} Rxc5 {[%emt 0:00:05]} 27. Rxc5 {[%emt 0:00:36]} Ra6 {[%emt 0:00:46]} 28. Rc8+ {[%emt 0:01:03]} Kf7 {[%emt 0:00:42]} 29. Rc7+ {[%emt 0:00:08]} Kg8 {[%emt 0:00:05]} 30. Rc8+ {[%emt 0:14:29]} Kf7 {[%emt 0:00:04]} 31. Rc7+ {[%emt 0:00:05]} 1/2-1/2

[Event "Marienbad IM-II 2022"]
[Site "Marianske Lazne"]
[Date "2022.01.15"]
[Round "1.20"]
[White "Meszaros, Andras"]
[Black "Ochedzan, Tymon"]
[Result "0-1"]
[ECO "B51"]
[WhiteElo "2205"]
[BlackElo "2350"]
[Annotator "ChessBase"]
[PlyCount "92"]
[EventDate "2022.01.15"]
[EventType "tourn"]
[EventCountry "CZE"]
[SourceTitle "playchess.com"]
[Source "ChessBase"]
[SourceQuality "1"]
[TimeControl "40/5400+30:1800+30"]

1. e4 {[%emt 0:00:07]} c5 {[%emt 0:00:06]} 2. Nf3 {[%emt 0:00:05]} d6 {[%emt 0:00:06]} 3. Bb5+ {[%emt 0:00:25]} Nd7 {[%emt 0:00:26]} 4. c3 {[%emt 0:00:26]} Ngf6 {[%emt 0:04:51]} 5. Qe2 {[%emt 0:00:25]} a6 {[%emt 0:04:39]} 6. Ba4 {[%emt 0:00:22]} b5 {[%emt 0:05:16]} 7. Bc2 {[%emt 0:00:07]} c4 {[%emt 0:00:22]} 8. b3 {[%emt 0:01:02]} Qc7 {[%emt 0:10:10]} 9. Na3 {[%emt 0:07:06]} cxb3 {[%emt 0:04:34]} 10. axb3 {[%emt 0:00:37]} Bb7 {[%emt 0:00:24]} 11. O-O {[%emt 0:01:49]} e5 {[%emt 0:04:01]} 12. d4 {[%emt 0:14:14]} Qxc3 {[%emt 0:05:35]} 13. Bd2 {[%emt 0:01:42]} Qc7 {[%emt 0:02:48]} 14. Bb4 {[%emt 0:08:52]} Be7 {[%emt 0:03:24]} 15. Nh4 {[%emt 0:01:29]} O-O {[%emt 0:04:25]} 16. Nf5 {[%emt 0:00:10]} Rfe8 {[%emt 0:02:59]} 17. Qe3 {[%emt 0:06:22]} Bf8 {[%emt 0:12:53]} 18. Rad1 {[%emt 0:09:49]} exd4 {[%emt 0:04:59]} 19. Qg3 {[%emt 0:00:11]} g6 {[%emt 0:04:42]} 20. Bxd6 {[%emt 0:16:22]} Qb6 {[%emt 0:05:16]} 21. Bxf8 {[%emt 0:08:29]} Kxf8 {[%emt 0:01:46]} 22. Qd6+ {[%emt 0:03:05]} Kg8 {[%emt 0:02:25]} 23. Qxb6 {[%emt 0:01:22]} Nxb6 {[%emt 0:00:04]} 24. Nd6 {[%emt 0:00:06]} Re7 {[%emt 0:00:54]} 25. Nxb7 {[%emt 0:03:07]} Rxb7 {[%emt 0:00:04]} 26. Rxd4 {[%emt 0:02:28]} Rd7 {[%emt 0:00:38]} 27. Rfd1 {[%emt 0:03:56]} Rc8 {[%emt 0:03:12]} 28. Rxd7 {[%emt 0:02:18]} Nfxd7 {[%emt 0:00:26]} 29. Rd4 {[%emt 0:04:48]} a5 {[%emt 0:03:47]} 30. Bd1 {[%emt 0:02:01]} b4 {[%emt 0:02:21]} 31. Nc2 {[%emt 0:00:22]} Rc3 {[%emt 0:01:27]} 32. Ne3 {[%emt 0:00:04]} Nc5 {[%emt 0:01:34]} 33. Rd6 {[%emt 0:00:08]} Nbd7 {[%emt 0:00:15]} 34. Kf1 {[%emt 0:00:17]} Nf8 {[%emt 0:01:23]} 35. Nd5 {[%emt 0:01:52]} Rc1 {[%emt 0:01:13]} 36. Ne7+ {[%emt 0:00:17]} Kg7 {[%emt 0:00:15]} 37. e5 {[%emt 0:01:39]} Nxb3 {[%emt 0:00:37]} 38. Nc6 {[%emt 0:00:13]} Ne6 {[%emt 0:00:44]} 39. Ke2 {[%emt 0:00:36]} Rxc6 {[%emt 0:00:38]} 40. Bxb3 {[%emt 0:00:13]} Rxd6 {[%emt 0:01:20]} 41. exd6 {[%emt 0:30:05]} Nd4+ {[%emt 0:31:43]} 42. Ke3 {[%emt 0:00:46]} Nf5+ {[%emt 0:00:11]} 43. Ke4 {[%emt 0:00:07]} Nxd6+ {[%emt 0:00:21]} 44. Kd5 {[%emt 0:00:06]} Nb5 {[%emt 0:02:38]} 45. Kc5 {[%emt 0:00:18]} Nc3 {[%emt 0:00:07]} 46. Bc4 {[%emt 0:00:04]} Ne4+ {[%emt 0:00:00]} 0-1

[Event "Marienbad IM-II 2022"]
[Site "Marianske Lazne"]
[Date "2022.01.19"]
[Round "6.16"]
[White "Hari Charan Sai Kalluri"]
[Black "Klek, Hanna Marie"]
[Result "1/2-1/2"]
[ECO "D30"]
[WhiteElo "2160"]
[BlackElo "2341"]
[Annotator "RC"]
[PlyCount "31"]
[EventDate "2022.01.15"]
[EventType "tourn"]
[EventCountry "CZE"]
[SourceTitle "playchess.com"]
[Source "ChessBase"]
[SourceQuality "1"]
[TimeControl "40/5400+30:1800+30"]

1. d4 {[%emt 0:05:44]} d5 {[%emt 0:00:03]} 2. Nf3 {[%emt 0:00:41]} Nf6 {[%emt 0:00:05]} 3. c4 {[%emt 0:00:40]} e6 {[%emt 0:00:08]} 4. Bg5 {[%emt 0:01:22]} h6 {[%emt 0:02:54]} 5. Bh4 {[%emt 0:02:15]} dxc4 {[%emt 0:03:33]} 6. Qa4+ {[%emt 0:04:02]} Nbd7 {[%emt 0:02:15]} 7. Nc3 {[%emt 0:03:11]} c6 {[%emt 0:04:06]} 8. Qxc4 {[%emt 0:00:52]} Bd6 {[%emt 0:08:00]} 9. e4 {[%emt 0:19:51]} e5 {[%emt 0:01:21]} 10. Bg3 {[%emt 0:05:28]} Qe7 {[%emt 0:02:44]} 11. O-O-O {[%emt 0:07:46]} O-O {[%emt 0:01:15]} 12. dxe5 {[%emt 0:01:10]} Bxe5 {[%emt 0:03:57]} 13. Nxe5 {[%emt 0:02:58]} Nxe5 {[%emt 0:00:07]} 14. Qd4 {[%emt 0:00:26]} Re8 {[%emt 0:02:55]} 15. f4 {[%emt 0:18:44]} Ng6 {[%emt 0:00:48]} 16. e5 {[%emt 0:05:06]} 1/2-1/2

[Event "Marienbad IM-II 2022"]
[Site "Marianske Lazne"]
[Date "2022.01.19"]
[Round "6.19"]
[White "Michalek, Jan"]
[Black "Meszaros, Andras"]
[Result "1/2-1/2"]
[ECO "B27"]
[WhiteElo "2240"]
[BlackElo "2205"]
[Annotator "ChessBase"]
[PlyCount "37"]
[EventDate "2022.01.15"]
[EventType "tourn"]
[EventCountry "CZE"]
[SourceTitle "playchess.com"]
[Source "ChessBase"]
[SourceQuality "1"]
[TimeControl "40/5400+30:1800+30"]

1. e4 {[%emt 0:00:03]} c5 {[%emt 0:00:08]} 2. Nf3 {[%emt 0:00:06]} g6 {[%emt 0:00:09]} 3. c3 {[%emt 0:00:29]} Bg7 {[%emt 0:00:15]} 4. d4 {[%emt 0:00:17]} cxd4 {[%emt 0:00:07]} 5. cxd4 {[%emt 0:00:06]} d5 {[%emt 0:00:07]} 6. e5 {[%emt 0:00:09]} Nc6 {[%emt 0:00:19]} 7. h3 {[%emt 0:00:37]} f6 {[%emt 0:01:09]} 8. exf6 {[%emt 0:02:27]} exf6 {[%emt 0:00:30]} 9. Nc3 {[%emt 0:00:42]} Nge7 {[%emt 0:00:09]} 10. Be2 {[%emt 0:01:22]} O-O {[%emt 0:00:12]} 11. O-O {[%emt 0:00:17]} a6 {[%emt 0:00:46]} 12. Re1 {[%emt 0:15:40]} b5 {[%emt 0:00:35]} 13. Bf1 {[%emt 0:04:28]} Qd6 {[%emt 0:02:45]} 14. a3 {[%emt 0:01:33]} Re8 {[%emt 0:02:40]} 15. b4 {[%emt 0:11:54]} Bf5 {[%emt 0:00:54]} 16. Qb3 {[%emt 0:01:27]} Kh8 {[%emt 0:00:32]} 17. Bb2 {[%emt 0:06:13]} Rad8 {[%emt 0:04:59]} 18. Rad1 {[%emt 0:00:41]} g5 {[%emt 0:02:37]} 19. g3 {[%emt 0:07:42]} 1/2-1/2

[Event "Marienbad IM-II 2022"]
[Site "Marianske Lazne"]
[Date "2022.01.22"]
[Round "9.16"]
[White "Meszaros, Andras"]
[Black "Hari Charan Sai Kalluri"]
[Result "1-0"]
[ECO "B87"]
[WhiteElo "2205"]
[BlackElo "2160"]
[Annotator "ChessBase"]
[PlyCount "223"]
[EventDate "2022.01.15"]
[EventType "tourn"]
[EventCountry "CZE"]
[SourceTitle "playchess.com"]
[Source "ChessBase"]
[SourceQuality "1"]
[TimeControl "40/5400+30:1800+30"]

1. e4 {[%emt 0:00:00]} c5 {[%emt 0:03:52]} 2. Nf3 {[%emt 0:00:01]} d6 {[%emt 0:00:09]} 3. d4 {[%emt 0:00:30]} cxd4 {[%emt 0:00:06]} 4. Nxd4 {[%emt 0:00:05]} Nf6 {[%emt 0:00:04]} 5. Nc3 {[%emt 0:00:07]} a6 {[%emt 0:00:03]} 6. Bc4 {[%emt 0:00:22]} e6 {[%emt 0:00:03]} 7. Bb3 {[%emt 0:00:10]} b5 {[%emt 0:00:05]} 8. Bg5 {[%emt 0:00:23]} Be7 {[%emt 0:00:27]} 9. Qf3 {[%emt 0:00:14]} Qc7 {[%emt 0:04:59]} 10. O-O-O {[%emt 0:00:19]} O-O {[%emt 0:01:52]} 11. e5 {[%emt 0:00:29]} Bb7 {[%emt 0:01:29]} 12. exf6 {[%emt 0:00:20]} Bxf3 {[%emt 0:04:34]} 13. fxe7 {[%emt 0:00:13]} Re8 {[%emt 0:01:58]} 14. gxf3 {[%emt 0:00:10]} d5 {[%emt 0:13:35]} 15. Rhg1 {[%emt 0:01:07]} Rxe7 {[%emt 0:45:14]} 16. Bxe7 {[%emt 0:06:32]} Qxe7 {[%emt 0:00:50]} 17. Nxd5 {[%emt 0:15:40]} Qh4 {[%emt 0:02:48]} 18. Rg4 {[%emt 0:01:15]} Qxh2 {[%emt 0:05:20]} 19. Nb6 {[%emt 0:13:22]} h5 {[%emt 0:03:58]} 20. Re4 {[%emt 0:05:49]} Ra7 {[%emt 0:00:09]} 21. a4 {[%emt 0:01:30]} e5 {[%emt 0:03:31]} 22. Nf5 {[%emt 0:02:12]} Qxf2 {[%emt 0:01:34]} 23. Rd8+ {[%emt 0:04:42]} Kh7 {[%emt 0:00:02]} 24. Rxb8 {[%emt 0:00:09]} Qf1+ {[%emt 0:01:22]} 25. Kd2 {[%emt 0:00:09]} Qxf3 {[%emt 0:00:09]} 26. Nd6 {[%emt 0:00:12]} f5 {[%emt 0:02:28]} 27. Bd5 {[%emt 0:03:58]} Qf2+ {[%emt 0:00:29]} 28. Re2 {[%emt 0:02:50]} Qd4+ {[%emt 0:00:36]} 29. Kc1 {[%emt 0:00:10]} Qf4+ {[%emt 0:01:16]} 30. Rd2 {[%emt 0:00:32]} e4 {[%emt 0:01:10]} 31. Bg8+ {[%emt 0:00:46]} Kh6 {[%emt 0:00:53]} 32. Nd5 {[%emt 0:00:35]} Qf3 {[%emt 0:00:48]} 33. Be6 {[%emt 0:01:41]} g6 {[%emt 0:00:34]} 34. Rh8+ {[%emt 0:00:46]} Kg5 {[%emt 0:00:30]} 35. Rd1 {[%emt 0:02:18]} e3 {[%emt 0:00:28]} 36. Rg1+ {[%emt 0:23:48]} Kh4 {[%emt 0:00:01]} 37. Re1 {[%emt 0:00:42]} e2 {[%emt 0:00:58]} 38. Kd2 {[%emt 0:00:45]} Rd7 {[%emt 0:00:32]} 39. Nxf5+ {[%emt 0:03:36]} gxf5 {[%emt 0:00:06]} 40. Bxd7 {[%emt 0:01:05]} Qxd5+ {[%emt 0:00:14]} 41. Kc1 {[%emt 0:30:22]} Qxd7 {[%emt 0:30:52]} 42. Rxe2 {[%emt 0:02:10]} Qf7 {[%emt 0:00:31]} 43. axb5 {[%emt 0:00:46]} axb5 {[%emt 0:00:04]} 44. Rg2 {[%emt 0:01:53]} Kh3 {[%emt 0:00:00]} 45. Rg1 {[%emt 0:00:00]} Kh4 {[%emt 0:00:00]} 46. Rhg8 {[%emt 0:00:00]} Qd5 {[%emt 0:00:00]} 47. R8g2 {[%emt 0:00:00]} Kh3 {[%emt 0:00:00]} 48. Rg5 {[%emt 0:00:00]} h4 {[%emt 0:00:00]} 49. Rf1 {[%emt 0:00:00]} Qe4 {[%emt 0:00:00]} 50. Rgxf5 {[%emt 0:00:00]} Kg2 {[%emt 0:00:00]} 51. R5f2+ {[%emt 0:00:00]} Kg3 {[%emt 0:00:00]} 52. Rd2 {[%emt 0:00:00]} Qe3 {[%emt 0:00:00]} 53. Kd1 {[%emt 0:00:00]} Qe5 {[%emt 0:00:00]} 54. Rg1+ {[%emt 0:00:00]} Kf3 {[%emt 0:00:00]} 55. c3 {[%emt 0:00:00]} Qe4 {[%emt 0:00:00]} 56. Kc1 {[%emt 0:00:00]} b4 {[%emt 0:00:00]} 57. cxb4 {[%emt 0:00:00]} Qxb4 {[%emt 0:00:00]} 58. Rh1 {[%emt 0:00:00]} Qc4+ {[%emt 0:00:00]} 59. Rc2 {[%emt 0:00:00]} Qa4 {[%emt 0:00:00]} 60. Rh3+ {[%emt 0:00:00]} Kg4 {[%emt 0:00:06]} 61. Rcc3 {[%emt 0:00:00]} Qa1+ {[%emt 0:02:01]} 62. Kc2 {[%emt 0:00:00]} Qa4+ {[%emt 0:00:02]} 63. Kd2 {[%emt 0:00:00]} Qd4+ {[%emt 0:00:22]} 64. Rhd3 {[%emt 0:00:00]} Qf2+ {[%emt 0:00:06]} 65. Kc1 {[%emt 0:00:00]} Qf1+ {[%emt 0:00:12]} 66. Kc2 {[%emt 0:00:00]} Qf2+ {[%emt 0:00:23]} 67. Kb1 {[%emt 0:00:00]} Qf1+ {[%emt 0:01:08]} 68. Ka2 {[%emt 0:00:00]} Qf7+ {[%emt 0:00:06]} 69. b3 {[%emt 0:00:00]} Qa7+ {[%emt 0:00:01]} 70. Kb1 {[%emt 0:00:00]} Qg1+ {[%emt 0:03:51]} 71. Rc1 {[%emt 0:00:00]} Qg2 {[%emt 0:01:49]} 72. Rc4+ {[%emt 0:00:00]} Kf5 {[%emt 0:00:09]} 73. Rcc3 {[%emt 0:00:00]} Qf1+ {[%emt 0:00:57]} 74. Kb2 {[%emt 0:00:00]} Qg2+ {[%emt 0:00:22]} 75. Rc2 {[%emt 0:00:00]} Qg7+ {[%emt 0:00:01]} 76. Kb1 {[%emt 0:00:00]} Qg1+ {[%emt 0:00:10]} 77. Rc1 {[%emt 0:00:00]} Qg2 {[%emt 0:00:12]} 78. Rc5+ {[%emt 0:00:00]} Ke4 {[%emt 0:00:48]} 79. Rcc3 {[%emt 0:00:00]} Qf1+ {[%emt 0:00:48]} 80. Kc2 {[%emt 0:00:00]} Qf2+ {[%emt 0:01:15]} 81. Rd2 {[%emt 0:00:00]} Qf5 {[%emt 0:01:44]} 82. Rh2 {[%emt 0:00:00]} Kf4+ {[%emt 0:02:18]} 83. Kc1 {[%emt 0:00:00]} Qg5 {[%emt 0:00:26]} 84. Kb2 {[%emt 0:00:00]} Qe7 {[%emt 0:00:58]} 85. Rc4+ {[%emt 0:00:00]} Kg3 {[%emt 0:00:02]} 86. Rhxh4 {[%emt 0:00:00]} Qe2+ {[%emt 0:00:11]} 87. Ka3 {[%emt 0:00:00]} Qe7+ {[%emt 0:00:45]} 88. b4 {[%emt 0:00:00]} Qe3+ {[%emt 0:00:42]} 89. Ka4 {[%emt 0:00:00]} Qa7+ {[%emt 0:00:01]} 90. Kb3 {[%emt 0:00:00]} Qb6 {[%emt 0:01:17]} 91. Rhd4 {[%emt 0:00:00]} Kf3 {[%emt 0:00:15]} 92. Rd3+ {[%emt 0:00:00]} Ke2 {[%emt 0:00:11]} 93. Rd5 {[%emt 0:00:00]} Qb7 {[%emt 0:01:06]} 94. Rdc5 {[%emt 0:00:00]} Qh7 {[%emt 0:00:39]} 95. Rc2+ {[%emt 0:00:00]} Kd3 {[%emt 0:00:10]} 96. b5 {[%emt 0:00:00]} Qb7 {[%emt 0:00:48]} 97. Kb4 {[%emt 0:00:00]} Qe4+ {[%emt 0:00:25]} 98. R2c4 {[%emt 0:00:00]} Qb7 {[%emt 0:00:13]} 99. Rc7 {[%emt 0:00:00]} Qb6 {[%emt 0:00:27]} 100. R7c6 {[%emt 0:00:00]} Qb8 {[%emt 0:00:12]} 101. b6 {[%emt 0:00:00]} Ke3 {[%emt 0:00:35]} 102. Kb5 {[%emt 0:00:00]} Kf3 {[%emt 0:00:29]} 103. R4c5 {[%emt 0:00:00]} Kf2 {[%emt 0:00:28]} 104. Rc8 {[%emt 0:00:09]} Qd6 {[%emt 0:00:15]} 105. Ka6 {[%emt 0:01:51]} Qd3+ {[%emt 0:00:06]} 106. Rb5 {[%emt 0:00:36]} Qa3+ {[%emt 0:00:11]} 107. Ra5 {[%emt 0:01:21]} Qd3+ {[%emt 0:00:09]} 108. Ka7 {[%emt 0:00:06]} Qd4 {[%emt 0:00:12]} 109. Rc7 {[%emt 0:00:20]} Qe3 {[%emt 0:00:20]} 110. Rf5+ {[%emt 0:00:54]} Ke2 {[%emt 0:00:07]} 111. Rfc5 {[%emt 0:00:23]} Qa3+ {[%emt 0:00:18]} 112. Kb8 {[%emt 0:00:07]} 1-0